Workbook

Sheet Problem
A1: Free Practice Problems for Casualty Actuarial Society Exam 7
A2: G. Stolyarov II, CPCU, ARe, ARC, AIS, AIE
A3: http://rationalargumentator.com/actuaryguide/7-study-guide.html
A4: Inexhaustible Exam-Style Practice
A5: Based on Problem 9(a) - Spring 2011 CAS Exam 7
A7: You are given the following triangle of cumulative paid-loss data:
B8: Age of Development in Months
A9: Accident Year | B9: 12 | C9: 24 | D9: 36 | E9: 48 | F9: 60
A10: 2042 | B10: =12300*D22 -> 9722.904217 | C10: =B10+2500*(1-D22) -> 10246.70417 | D10: =C10+1300*D22 -> 11274.3282 | E10: =D10+800*(1-D22) -> 11441.94418 | F10: =E10+1200*D22*(1-D22) -> 11640.68981
A11: 2043 | B11: =19000*(1-D22) -> 3980.879664 | C11: =B11+5000*D22^2 -> 7105.172956 | D11: =C11+3000*D22*(1-D22) -> 7602.037034 | E11: =D11+1900*D22 -> 9103.949068
A12: 2044 | B12: =B11*(1.7-1.1*D22) -> 3306.009019 | C12: =B12+0.5*C10 -> 8429.361106 | D12: =C12+1100*D22 -> 9298.889125
A13: 2045 | B13: =10000+200*D22 -> 10158.096 | C13: =B13*(1+D22) -> 18187.86791
A14: 2046 | B14: =(SUM(B10:B13)+12000)/5 -> 7833.577781
A16: For an over-dispersed negative binomial model, the disperson parameter φ is | F16: =3*(D22+0.34) -> 3.391440053
A17: Use the negative binomial model to calculate the mean and variance of the incremental claim amount for the following accident year:
F18: =IF(D22<0.4,A10, IF(D22<0.7, A11, IF(D22<0.9,A12, A13))) -> 2044
A19: The incremental amount is from | C19: =IF(D22<0.1, 12, IF(D22<0.2,24, IF(D22<0.3, 36, IF(D22<0.4, 48, IF(D22<0.5, 12, IF(D22<0.6, 24, IF(D22<0.7, 36, IF(D22<0.8, 12, IF(D22<0.9, 24, 12))))))))) -> 12 | D19: months to | E19: =C19+12 -> 24 | F19: months.
A20: NOTE: Use volume-weighted chain-ladder loss-development factors to solve this problem.
A21: TO RE-RANDOMIZE THE VALUES FOR THIS PROBLEM, CLICK ON THE FORMULA IN THE RED BOX AND PRESS "ENTER". That is all you need to do.
D22: =StaticRand() -> 0.7904800177

Sheet Solution
A1: Inexhaustible Exam-Style Practice
A2: Based on Problem 9(a) - Spring 2011 CAS Exam 7
A3: Let C = the incremental claim amount in question.
A4: Let D = the prior cumulative development.
A5: Let λ = the loss-development factor for the time increment in question.
A7: Here λ is for the time period between | D7: =Problem!C19 -> 12 | E7: and | F7: =Problem!E19 -> 24 | G7: months.
A8: Thus, λ (volume-weighted) is | F8: =IF(D7=12,Generation!C3, IF(D7=24,Generation!C4, IF(D7=36,Generation!C5,Generation!C6))) -> 1.618421891
A10: Here, D = | D10: =IF(Problem!D22<0.1,Problem!B10, IF(Problem!D22<0.2, Problem!C10, IF(Problem!D22<0.3,Problem!D10, IF(Problem!D22<0.4, Problem!E10, IF(Problem!D22<0.5,Problem!B11, IF(Problem!D22<0.6, Problem!C11, IF(Problem!D22<0.7,Problem!D11, IF(Problem!D22<0.8, Problem!B12, IF(Problem!D22<0.9, Problem!C12, Problem!B13))))))))) -> 3306.009019
B11: Here, φ = | D11: =Problem!F16 -> 3.391440053
B12: E[C] = (λ-1)*D = | D12: =(F8-1)*D10 -> 2044.508351 | E12: <<<< ANSWER FOR THE MEAN
B13: Var[C] = φ*λ*(λ-1)*D = | D13: =D11*F8*D12 -> 11221.85823 | E13: <<<< ANSWER FOR THE VARIANCE

Sheet Generation
B2: LDFs
B3: 12 to 24 | C3: =SUM(Problem!C10:'Problem'!C13)/SUM(Problem!B10:'Problem'!B13) -> 1.618421891
B4: 24 to 36 | C4: =SUM(Problem!D10:'Problem'!D12)/SUM(Problem!C10:'Problem'!C12) -> 1.092858849
B5: 36 to 48 | C5: =SUM(Problem!E10:'Problem'!E11)/SUM(Problem!D10:'Problem'!D11) -> 1.088445418
B6: 48 to 60 | C6: =Problem!F10/Problem!E10 -> 1.017369918
